fUST/lending_fUST_20260621
["ID","MTS","AMOUNT","RATE_DAILY","PERIOD"]
[425893684,1782030633000,-172.00571797,0.000146,7]
[425893706,1782030633000,-500.0,0.00015476,2]
[425893698,1782030633000,-500.0,0.00015476,2]
[425893704,1782030633000,-500.0,0.00015476,2]
[425893717,1782030633000,-653.45182189,0.00015974,2]
[425893732,1782030633000,-3464.38487992,0.00015974,2]
[425893730,1782030633000,-62.49824347,0.00015974,2]
[425893727,1782030633000,-1272.96804881,0.00015974,2]
[425893725,1782030633000,-1278.34099527,0.00015974,2]
[425893713,1782030633000,-300.0,0.00015973,2]
[425893700,1782030633000,-500.0,0.00015476,2]
[425893719,1782030633000,-1161.6921278,0.00015974,2]
[425893721,1782030633000,-1399.96143863,0.00015974,2]
[425893723,1782030633000,-415.18251106,0.00015974,2]
[425893709,1782030633000,-133.43084678,0.00015888,2]
[425893711,1782030633000,-119.94715322,0.00015888,2]
[425893715,1782030633000,-363.02878994,0.00015974,2]
[425894363,1782030638000,-4642.12174269,0.00015974,2]
[425894375,1782030638000,-36012.22976194,0.00016112,2]
[425894365,1782030638000,-319.07388327,0.00015974,2]
[425894373,1782030638000,-17244.64438215,0.00016112,2]
[425894367,1782030638000,-364.65586659,0.00015974,2]
[425894370,1782030638000,-819.65522413,0.00015974,2]
[425894389,1782030638000,-594.82166618,0.00016112,2]
[425894362,1782030638000,-93.29726147,0.00015974,2]
[425894369,1782030638000,-569.77479155,0.00015974,2]
[425894589,1782030640000,-343.0,0.00016112,2]
[425894597,1782030641000,-534.05,0.00016112,2]
[425895569,1782030650000,-3124.36025643,0.00016112,2]
[425895529,1782030650000,-340.96244011,0.00016112,2]
[425899041,1782030690000,785.2882745,0.00015832,2]
[425899054,1782031383000,216.66148393,0.00022844,120]
[425899055,1782031391000,216.66148393,0.00022844,120]
[425899056,1782031396000,948.25613366,0.00022844,120]
[425899057,1782031400000,334.0,0.00023241,120]
[425899059,1782031455000,160.0,0.0002,120]
[425899065,1782031548000,305.8,0.00023264,120]
[425899066,1782031567000,669.78163479,0.00023043,120]
[425899068,1782031577000,161.0,0.0002,120]
[425899074,1782031784000,168.098654,0.00014989,120]
[425899073,1782031784000,168.098654,0.00014989,61]
[425899110,1782031832000,-152.59160908,0.00014991,2]
[425899109,1782031832000,-168.098654,0.00014989,2]
[425899158,1782031842000,-243.16116911,0.00014991,2]
[425899152,1782031842000,-119.78868723,0.00014991,2]
[425899154,1782031842000,-311.29176721,0.00014991,2]
[425899156,1782031842000,-243.23221716,0.00014991,2]
[425899160,1782031842000,-588.97412957,0.00014991,2]
[425899175,1782031842000,-110.73194018,0.00014991,2]
[425899177,1782031842000,-358.28632106,0.00014991,2]
[425899183,1782031842000,-475.4569137,0.00015312,2]
[425899184,1782031842000,-202.703,0.00015692,2]
[425899186,1782031842000,-3252.03185976,0.00015912,2]
[425899180,1782031842000,-5924.79945192,0.00015218,2]
[425899185,1782031842000,-1000.0,0.00015902,2]
[425899182,1782031842000,-573.02169242,0.00015312,2]
[425899187,1782031842000,-1858.5847356,0.00015912,2]
[425899188,1782031842000,-1765.38613729,0.00015912,2]
[425899190,1782031842000,-1284.15935149,0.00015912,2]
[425899189,1782031842000,-910.45064582,0.00015912,2]
[425899191,1782031842000,-1246.60918305,0.00015912,2]
[425899192,1782031842000,-1841.76313425,0.00015912,2]
[425899178,1782031842000,-2454.84881338,0.00015218,2]
[425899200,1782031843000,-566.25839924,0.00015912,2]
[425899206,1782031844000,-18491.45900226,0.00015912,2]
[425899202,1782031844000,-2653.8385751,0.00015912,2]
[425899204,1782031844000,-3634.422095,0.00015912,2]
[425899233,1782031844000,-1297.21331,0.00015912,2]
[425899235,1782031844000,-1466.42816764,0.00015912,2]
[425899241,1782031844000,-1335.108022,0.00015912,2]
[425899528,1782031846000,-11364.9534313,0.00015912,2]
[425899521,1782031846000,-958.5,0.00015912,2]
[425899530,1782031846000,-528.01737883,0.00015912,2]
[425899634,1782031847000,-1593.92,0.00016986,2]
[425899632,1782031847000,-500.0,0.00016986,2]
[425899620,1782031847000,-500.0,0.00016712,2]
[425899622,1782031847000,-500.0,0.00016712,2]
[425899616,1782031847000,-1358.15,0.00016712,2]
[425899636,1782031847000,-500.0,0.00016986,2]
[425899614,1782031847000,-500.0,0.00016712,2]
[425899612,1782031847000,-1593.92,0.00016712,2]
[425899610,1782031847000,-500.0,0.00016712,2]
[425899609,1782031847000,-500.0,0.00016712,2]
[425899618,1782031847000,-500.0,0.00016712,2]
[425899624,1782031847000,-500.0,0.00016712,2]
[425899628,1782031847000,-4654.71059534,0.00016869,2]
[425899626,1782031847000,-1554.85022362,0.00016765,2]
[425899641,1782031847000,-500.0,0.00016986,2]
[425899638,1782031847000,-1358.15,0.00016986,2]
[425899640,1782031847000,-500.0,0.00016986,2]
[425899647,1782031847000,-200.0,0.00017,2]
[425899643,1782031847000,-500.0,0.00016986,2]
[425899649,1782031847000,-151.0,0.00017103,2]
[425899651,1782031847000,-458.0970838,0.00017103,2]
[425899653,1782031847000,-458.0970838,0.00017103,2]
[425899655,1782031847000,-326.9920017,0.00017103,2]
[425899603,1782031847000,-964.382,0.00016698,2]
[425899630,1782031847000,-500.0,0.00016986,2]
[425899596,1782031847000,-334.5657207,0.00016611,2]
[425899566,1782031847000,-515.64039301,0.00016112,2]
[425899594,1782031847000,-171.067902,0.00016534,2]
[425899549,1782031847000,-660.06935172,0.00015912,2]
[425899551,1782031847000,-30498.11163922,0.00015912,2]
[425899553,1782031847000,-500.0,0.00015973,2]
[425899557,1782031847000,-1946.19,0.00016002,3]
[425899559,1782031847000,-973.09,0.00016002,3]
[425899563,1782031847000,-151.0,0.00016112,2]
[425899568,1782031847000,-150.20380786,0.00016438,2]
[425899564,1782031847000,-158.49513843,0.00016112,2]
[425899561,1782031847000,-486.55,0.00016002,3]
[425899555,1782031847000,-500.0,0.00016001,2]
[425899660,1782031847000,-326.9920017,0.00017103,2]
[425899575,1782031847000,-500.0,0.00016438,2]
[425899577,1782031847000,-1593.92,0.00016438,2]
[425899579,1782031847000,-500.0,0.00016438,2]
[425899574,1782031847000,-500.0,0.00016438,2]
[425899582,1782031847000,-1358.15,0.00016438,2]
[425899583,1782031847000,-642.67814125,0.00016438,2]
[425899586,1782031847000,-500.0,0.00016438,2]
[425899592,1782031847000,-500.0,0.00016438,2]
[425899588,1782031847000,-500.0,0.00016438,2]
[425899590,1782031847000,-500.0,0.00016438,2]
[425899599,1782031847000,-381.97846284,0.00016611,2]
[425899601,1782031847000,-204.0885585,0.00016611,2]
[425899607,1782031847000,-445.0,0.00016698,2]
[425899605,1782031847000,-195.192,0.00016698,2]
[425899597,1782031847000,-234.63176427,0.00016611,2]
[425899658,1782031847000,-151.0,0.00017103,2]
[425899645,1782031847000,-500.0,0.00016986,2]
[425899671,1782031847000,-326.9920017,0.00017103,2]
[425899716,1782031847000,-1593.92,0.0001726,2]
[425899724,1782031847000,-500.0,0.0001726,2]
[425899728,1782031847000,-500.0,0.0001726,2]
[425899731,1782031847000,-160.0,0.00017372,3]
[425899733,1782031847000,-3892.38,0.00017372,3]
[425899735,1782031847000,-1946.18,0.00017372,3]
[425899737,1782031847000,-973.1,0.00017372,3]
[425899739,1782031847000,-400.0,0.000175,2]
[425899741,1782031847000,-500.0,0.00017534,2]
[425899743,1782031847000,-500.0,0.00017534,2]
[425899753,1782031847000,-500.0,0.00017534,2]
[425899745,1782031847000,-1593.92,0.00017534,2]
[425899751,1782031847000,-500.0,0.00017534,2]
[425899749,1782031847000,-1358.15,0.00017534,2]
[425899747,1782031847000,-500.0,0.00017534,2]
[425899755,1782031847000,-500.0,0.00017534,2]
[425899758,1782031847000,-160.0,0.00017543,2]
[425899766,1782031847000,-190.36586932,0.000177,2]
[425899760,1782031847000,-160.0,0.00017543,2]
[425899762,1782031847000,-417.15472785,0.00017543,2]
[425899768,1782031847000,-400.0,0.000177,2]
[425899770,1782031847000,-1554.85022362,0.00017798,2]
[425899664,1782031847000,-199.0298949,0.00017103,2]
[425899773,1782031847000,-500.0,0.00017808,2]
[425899774,1782031847000,-500.0,0.00017808,2]
[425899718,1782031847000,-500.0,0.0001726,2]
[425899714,1782031847000,-500.0,0.0001726,2]
[425899764,1782031847000,-190.36586932,0.000176,2]
[425899712,1782031847000,-1554.85022362,0.0001726,2]
[425899722,1782031847000,-243.34933025,0.0001726,2]
[425899668,1782031847000,-458.0970838,0.00017103,2]
[425899681,1782031847000,-151.0,0.00017103,2]
[425899670,1782031847000,-458.0970838,0.00017103,2]
[425899662,1782031847000,-458.0970838,0.00017103,2]
[425899673,1782031847000,-326.9920017,0.00017103,2]
[425899675,1782031847000,-151.0,0.00017103,2]
[425899677,1782031847000,-151.0,0.00017103,2]
[425899682,1782031847000,-326.9920017,0.00017103,2]
[425899683,1782031847000,-151.0,0.00017103,2]
[425899679,1782031847000,-597.8555318,0.00017103,2]
[425899685,1782031847000,-326.9920017,0.00017103,2]
[425899666,1782031847000,-326.9920017,0.00017103,2]
[425899687,1782031847000,-151.0,0.00017103,2]
[425899689,1782031847000,-458.0970838,0.00017103,2]
[425899710,1782031847000,-500.0,0.0001726,2]
[425899708,1782031847000,-729.84,0.0001725,3]
[425899703,1782031847000,-171.067902,0.0001723,2]
[425899699,1782031847000,-321.0668742,0.00017103,2]
[425899726,1782031847000,-500.0,0.0001726,2]
[425899696,1782031847000,-326.9920017,0.00017103,2]
[425899706,1782031847000,-243.27,0.0001725,3]
[425899693,1782031847000,-326.9920017,0.00017103,2]
[425899692,1782031847000,-326.9920017,0.00017103,2]
[425899701,1782031847000,-268.15058774,0.00017204,2]
[425899720,1782031847000,-1358.15,0.0001726,2]
[425899828,1782031848000,-326.9920017,0.00017932,2]
[425899841,1782031848000,-500.0,0.00018082,2]
[425899825,1782031848000,-327.6573723,0.00017932,2]
[425899831,1782031848000,-196.49955408,0.00018,2]
[425899837,1782031848000,-180.0,0.00018071,2]
[425899833,1782031848000,-591.50993076,0.00018,2]
[425899835,1782031848000,-210.0,0.00018071,2]
[425899847,1782031848000,-1358.15,0.00018082,2]
[425899845,1782031848000,-318.90562327,0.00018082,2]
[425899843,1782031848000,-1593.92,0.00018082,2]
[425899857,1782031848000,-400.0,0.000181,2]
[425899851,1782031848000,-500.0,0.00018082,2]
[425899849,1782031848000,-372.61882835,0.00018082,2]
[425899853,1782031848000,-500.0,0.00018082,2]
[425899855,1782031848000,-190.36586932,0.000181,2]
[425899871,1782031848000,-500.0,0.00018356,2]
[425899869,1782031848000,-1593.92,0.00018356,2]
[425899868,1782031848000,-500.0,0.00018356,2]
[425899867,1782031848000,-1554.85022362,0.00018356,2]
[425899859,1782031848000,-600.0,0.00018163,2]
[425899815,1782031848000,-326.4250623,0.00017932,2]
[425899839,1782031848000,-500.0,0.00018082,2]
[425899821,1782031848000,-458.0970838,0.00017932,2]
[425899801,1782031848000,-458.0970838,0.00017932,2]
[425899811,1782031848000,-457.7491992,0.00017932,2]
[425899862,1782031848000,-190.36586932,0.000183,2]
[425899780,1782031848000,-1358.15,0.00017808,2]
[425899777,1782031848000,-1593.92,0.00017808,2]
[425899782,1782031848000,-500.0,0.00017808,2]
[425899778,1782031848000,-500.0,0.00017808,2]
[425899784,1782031848000,-500.0,0.00017808,2]
[425899786,1782031848000,-500.0,0.00017808,2]
[425899792,1782031848000,-171.067902,0.00017926,2]
[425899793,1782031848000,-151.0,0.00017932,2]
[425899789,1782031848000,-400.0,0.000179,2]
[425899819,1782031848000,-151.0,0.00017932,2]
[425899788,1782031848000,-190.36586932,0.000179,2]
[425899795,1782031848000,-326.9920017,0.00017932,2]
[425899797,1782031848000,-151.0,0.00017932,2]
[425899799,1782031848000,-151.0,0.00017932,2]
[425899803,1782031848000,-326.9920017,0.00017932,2]
[425899807,1782031848000,-326.9920017,0.00017932,2]
[425899809,1782031848000,-457.3293681,0.00017932,2]
[425899817,1782031848000,-458.0970838,0.00017932,2]
[425899813,1782031848000,-151.0,0.00017932,2]
[425899823,1782031848000,-458.0970838,0.00017932,2]
[425899830,1782031848000,-326.9920017,0.00017932,2]
[425899805,1782031848000,-458.0970838,0.00017932,2]
[425899870,1782031848000,-1358.15,0.00018356,2]
[425899899,1782031848000,-153.45483027,0.00018525,2]
[425899866,1782031848000,-500.0,0.00018356,2]
[425899895,1782031848000,-170.30012608,0.00018525,2]
[425899910,1782031848000,-185.6571347,0.00018525,2]
[425899912,1782031848000,-486.54,0.0001862,3]
[425899914,1782031848000,-171.067902,0.00018622,2]
[425899916,1782031848000,-500.0,0.0001863,2]
[425899918,1782031848000,-500.0,0.0001863,2]
[425899929,1782031848000,-500.0,0.00018904,2]
[425899927,1782031848000,-591.50993076,0.000187,2]
[425899931,1782031848000,-500.0,0.00018904,2]
[425899920,1782031848000,-1593.92,0.0001863,2]
[425899897,1782031848000,-761.90758519,0.00018525,2]
[425899924,1782031848000,-500.0,0.0001863,2]
[425899922,1782031848000,-1358.15,0.0001863,2]
[425899933,1782031848000,-1593.92,0.00018904,2]
[425899938,1782031848000,-313.40082426,0.00018904,2]
[425899940,1782031848000,-500.0,0.00018904,2]
[425899935,1782031848000,-1044.74917574,0.00018904,2]
[425899945,1782031848000,-7365.80996563,0.00019,2]
[425899947,1782031848000,-28.95350917,0.00019,2]
[425899951,1782031848000,-160.0,0.00019012,2]
[425899952,1782031848000,-30.61688589,0.00019012,2]
[425899861,1782031848000,-591.50993076,0.000182,2]
[425899925,1782031848000,-500.0,0.0001863,2]
[425899908,1782031848000,-176.10768174,0.00018525,2]
[425899943,1782031848000,-500.0,0.00018904,2]
[425899893,1782031848000,-570.38680867,0.00018525,2]
[425899864,1782031848000,-400.0,0.000183,2]
[425899872,1782031848000,-500.0,0.00018356,2]
[425899874,1782031848000,-591.50993076,0.000185,2]
[425899876,1782031848000,-165.24032173,0.00018518,2]
[425899865,1782031848000,-418.98529335,0.00018307,2]
[425899875,1782031848000,-171.1693601,0.00018518,2]
[425899877,1782031848000,-190.82572102,0.00018518,2]
[425899884,1782031848000,-157.41401436,0.00018518,2]
[425899881,1782031848000,-209.810025,0.00018518,2]
[425899885,1782031848000,-169.68116521,0.00018525,2]
[425899878,1782031848000,-168.21916992,0.00018518,2]
[425899879,1782031848000,-198.88769138,0.00018518,2]
[425899889,1782031848000,-165.68334842,0.00018525,2]
[425899882,1782031848000,-216.07656686,0.00018518,2]
[425899906,1782031848000,-196.69969243,0.00018525,2]
[425899904,1782031848000,-171.15074615,0.00018525,2]
[425899902,1782031848000,-158.39512871,0.00018525,2]
[425899887,1782031848000,-248.98043559,0.00018525,2]
[425899900,1782031848000,-163.93145545,0.00018525,2]
[425899873,1782031848000,-591.50993076,0.000184,2]
[425899880,1782031848000,-220.63890663,0.00018518,2]
[425899949,1782031848000,-160.0,0.00019012,2]
[425899891,1782031848000,-307.81959857,0.00018525,2]
[425901818,1782031867000,224.04775013,0.00023038,120]
[425901888,1782031959000,635.18941413,0.00023287,120]
[425901900,1782032199000,344.8208966,0.0002054,120]
[425901902,1782032246000,219.20698462,0.00022833,120]
[425901903,1782032251000,376.21306773,0.00017,120]
[425901904,1782032257000,167.48078626,0.000178,120]
[425901922,1782032492000,-156.247,0.00014888,2]
[425901925,1782032508000,-785.2882745,0.00014988,2]
[425901929,1782032525000,-897.84066911,0.00015,2]
[425901931,1782032542000,-217.269,0.00015594,2]
[425901932,1782032559000,-182.71611216,0.000158,2]
[425902006,1782033031000,-173.97854582,0.000156,2]
[425902009,1782033031000,-196.06807149,0.00015611,2]
[425902005,1782033031000,-173.00099531,0.000156,2]
[425902008,1782033031000,-235.58530932,0.00015611,2]
[425902010,1782033031000,-1335.69406064,0.00015612,2]
[425902007,1782033031000,-500.0,0.00015611,2]
[425902004,1782033031000,-53.04198022,0.000156,2]
[425902002,1782033031000,-169.38751638,0.000156,2]
[425902003,1782033031000,-119.46325951,0.000156,2]
[425902215,1782033040000,-1044.18626422,0.00015612,2]
[425902216,1782033040000,-396.11281216,0.00015612,2]
[425902236,1782033040000,-516.81888968,0.00015612,2]
[425902223,1782033040000,-49.90228373,0.00015612,2]
[425902225,1782033040000,-13764.57771627,0.00015612,2]
[425902229,1782033040000,-2991.80289166,0.00015612,2]
[425902234,1782033040000,-65223.72910576,0.00015612,2]
[425902227,1782033040000,-1053498.53278787,0.00015612,2]
[425902566,1782033043000,-1967.51071206,0.00015612,2]
[425906055,1782033074000,600.0,0.00022872,30]
[425910146,1782034231000,-300.0,0.00013562,2]
[425910224,1782034238000,-217.901,0.00015104,2]
[425910226,1782034238000,-151.0,0.000154,2]
[425910220,1782034238000,-4270.8568233,0.00013562,2]
[425910222,1782034238000,-1766.96752692,0.00013699,2]
[425910229,1782034238000,-40077.04712651,0.00015412,2]
[425910464,1782034240000,-7585.03936003,0.00015412,2]
[425910814,1782034243000,-21354.15346843,0.00015412,2]
[425911165,1782034246000,-32377.18209102,0.00015412,2]
[425911163,1782034246000,-1899.83256176,0.00015412,2]
[425911177,1782034246000,-3846.4522306,0.00015412,2]
[425911160,1782034246000,-2202.6368372,0.00015412,2]
[425911158,1782034246000,-20175.42894494,0.00015412,2]
[425911175,1782034246000,-21160.61150848,0.00015412,2]
[425916212,1782034291000,-342.17415903,0.00015105,2]
[425916397,1782035409000,202.0,0.0002181,120]
[425916407,1782035432000,-309.00669454,0.00014334,2]
[425916405,1782035432000,-388.30838995,0.0001401,2]
[425916406,1782035432000,-61.41345757,0.00014334,2]
[425916404,1782035432000,-8709.58748815,0.0001401,2]
[425916403,1782035432000,-4020.93230412,0.00013076,2]
[425916401,1782035432000,-3526.56011722,0.00012945,2]
[425916402,1782035432000,-1473.43988278,0.00012945,2]
[425916420,1782035438000,-2773.58160872,0.00015108,2]
[425916431,1782035438000,-501.76482651,0.0001511,2]
[425916429,1782035438000,-500.0,0.0001511,2]
[425916421,1782035438000,-17371.58797871,0.00015108,2]
[425916430,1782035438000,-500.0,0.0001511,2]
[425916415,1782035438000,-251.46995145,0.00014612,2]
[425916418,1782035438000,-164.37543721,0.000151,2]
[425916416,1782035438000,-226.03711687,0.00014991,2]
[425916417,1782035438000,-444.86936313,0.00015089,2]
[425916422,1782035438000,-164.37543719,0.00015108,2]
[425916414,1782035438000,-208.64835142,0.00014458,2]
[425916413,1782035438000,-232.31533149,0.00014334,2]
[425916419,1782035438000,-164.37543719,0.00015104,2]
[425916424,1782035438000,-340.60445986,0.0001511,2]
[425916428,1782035438000,-500.0,0.0001511,2]
[425916425,1782035438000,-500.0,0.0001511,2]
[425916426,1782035438000,-500.0,0.0001511,2]
[425916432,1782035438000,-500.0,0.0001511,2]
[425916434,1782035438000,-500.0,0.0001511,2]
[425916433,1782035438000,-336.58522636,0.0001511,2]
[425916435,1782035438000,-504.80953425,0.0001511,2]
[425916436,1782035438000,-500.0,0.0001511,2]
[425916438,1782035438000,-500.0,0.0001511,2]
[425916439,1782035438000,-500.0,0.0001511,2]
[425916437,1782035438000,-500.0,0.0001511,2]
[425916440,1782035438000,-500.0,0.0001511,2]
[425916441,1782035438000,-60128.404736,0.00015111,2]
[425916423,1782035438000,-500.0,0.0001511,2]
[425916427,1782035438000,-342.0113458,0.0001511,2]
[425916617,1782035441000,-3920.27355947,0.00015111,2]
[425917089,1782035446000,-23424.47638346,0.00015011,2]
[425920595,1782035526000,168.8384639,0.00022833,120]
[425920695,1782036073000,-2457.14717457,0.00012561,2]
[425920932,1782036632000,-300.0,0.00013337,2]
[425920884,1782036632000,-305.668248,0.00011826,2]
[425920897,1782036632000,-283.10115484,0.00013076,7]
[425920899,1782036632000,-400.499995,0.00013076,7]
[425920901,1782036632000,-501.73638532,0.00013076,7]
[425920903,1782036632000,-300.0,0.00013337,2]
[425920894,1782036632000,-5000.0,0.00011945,2]
[425920892,1782036632000,-4058.69220636,0.00011826,2]
[425920907,1782036632000,-300.0,0.00013337,2]
[425920908,1782036632000,-300.0,0.00013337,2]
[425920912,1782036632000,-300.0,0.00013337,2]
[425920904,1782036632000,-300.0,0.00013337,2]
[425920918,1782036632000,-300.0,0.00013337,2]
[425920910,1782036632000,-300.0,0.00013337,2]
[425920938,1782036632000,-579.08646463,0.0001373,7]
[425920936,1782036632000,-600.0,0.00013603,2]
[425920930,1782036632000,-300.0,0.00013337,2]
[425920922,1782036632000,-300.0,0.00013337,2]
[425920934,1782036632000,-1185.33753516,0.00013338,7]
[425920920,1782036632000,-300.0,0.00013337,2]
[425920926,1782036632000,-300.0,0.00013337,2]
[425920924,1782036632000,-300.0,0.00013337,2]
[425920915,1782036632000,-300.0,0.00013337,2]
[425920928,1782036632000,-300.0,0.00013337,2]
[425921083,1782036638000,-500.0,0.00014415,2]
[425921084,1782036638000,-500.0,0.00014415,2]
[425921085,1782036638000,-500.0,0.00014415,2]
[425921089,1782036638000,-500.0,0.00014415,2]
[425921088,1782036638000,-500.0,0.00014415,2]
[425921086,1782036638000,-500.0,0.00014415,2]
[425921082,1782036638000,-500.0,0.00014415,2]
[425921076,1782036638000,-500.0,0.00014415,2]
[425921075,1782036638000,-1185.33753516,0.00014122,7]
[425921078,1782036638000,-500.0,0.00014415,2]
[425921080,1782036638000,-75.51970539,0.00014415,2]
[425921079,1782036638000,-500.0,0.00014415,2]
[425921077,1782036638000,-500.0,0.00014415,2]
[425921074,1782036638000,-606.25107053,0.0001373,7]
[425921081,1782036638000,-424.48029461,0.00014415,2]
[425921091,1782036638000,-500.0,0.00014415,2]
[425921087,1782036638000,-500.0,0.00014415,2]
[425921099,1782036638000,-492.0,0.00014415,2]
[425921090,1782036638000,-500.0,0.00014415,2]
[425921105,1782036638000,-492.0,0.00014415,2]
[425921104,1782036638000,-500.0,0.00014415,2]
[425921107,1782036638000,-492.0,0.00014415,2]
[425921102,1782036638000,-492.0,0.00014415,2]
[425921103,1782036638000,-492.0,0.00014415,2]
[425921097,1782036638000,-492.0,0.00014415,2]
[425921106,1782036638000,-500.0,0.00014415,2]
[425921094,1782036638000,-492.0,0.00014415,2]
[425921101,1782036638000,-500.0,0.00014415,2]
[425921092,1782036638000,-492.0,0.00014415,2]
[425921098,1782036638000,-500.0,0.00014415,2]
[425921093,1782036638000,-500.0,0.00014415,2]
[425921096,1782036638000,-500.0,0.00014415,2]
[425921100,1782036638000,-492.0,0.00014415,2]
[425921095,1782036638000,-234.41642664,0.00014415,2]
[425921133,1782036639000,-492.0,0.00014415,2]
[425921135,1782036639000,-500.0,0.00014415,2]
[425921134,1782036639000,-513.90542051,0.00014415,2]
[425921138,1782036639000,-500.0,0.0001448,2]
[425921131,1782036639000,-492.0,0.00014415,2]
[425921141,1782036639000,-417.908696,0.00014481,2]
[425921126,1782036639000,-492.0,0.00014415,2]
[425921128,1782036639000,-492.0,0.00014415,2]
[425921125,1782036639000,-492.0,0.00014415,2]
[425921108,1782036639000,-500.0,0.00014415,2]
[425921117,1782036639000,-492.0,0.00014415,2]
[425921121,1782036639000,-492.0,0.00014415,2]
[425921119,1782036639000,-492.0,0.00014415,2]
[425921112,1782036639000,-492.0,0.00014415,2]
[425921109,1782036639000,-492.0,0.00014415,2]
[425921111,1782036639000,-492.0,0.00014415,2]
[425921137,1782036639000,-500.0,0.0001448,2]
[425921113,1782036639000,-326.97277043,0.00014415,2]
[425921115,1782036639000,-492.0,0.00014415,2]
[425921110,1782036639000,-500.0,0.00014415,2]
[425921123,1782036639000,-492.0,0.00014415,2]
[425921146,1782036639000,-537.39835849,0.00014688,2]
[425921130,1782036639000,-492.0,0.00014415,2]
[425921139,1782036639000,-500.0,0.0001448,2]
[425921190,1782036639000,-874.58951452,0.00014863,2]
[425921186,1782036639000,-15999.90457318,0.00014863,2]
[425921188,1782036639000,-1183.71550276,0.00014863,2]
[425921184,1782036639000,-6410.82200318,0.00014863,2]
[425921182,1782036639000,-33030.21201096,0.00014863,2]
[425921177,1782036639000,-70501.84546944,0.00014863,2]
[425921179,1782036639000,-1017.33780392,0.00014863,2]
[425921169,1782036639000,-506.67903297,0.00014689,2]
[425921171,1782036639000,-8730.97255293,0.00014763,2]
[425921173,1782036639000,-164.37543719,0.000148,2]
[425921175,1782036639000,-800.33172029,0.000148,2]
[425921161,1782036639000,-500.0,0.00014689,2]
[425921163,1782036639000,-500.0,0.00014689,2]
[425921167,1782036639000,-384.13385449,0.00014689,2]
[425921165,1782036639000,-500.0,0.00014689,2]
[425921156,1782036639000,-500.0,0.00014689,2]
[425921154,1782036639000,-500.0,0.00014689,2]
[425921152,1782036639000,-500.0,0.00014689,2]
[425921145,1782036639000,-1185.3375352,0.00014645,7]
[425921150,1782036639000,-500.0,0.00014689,2]
[425921143,1782036639000,-3515.59682597,0.00014589,2]
[425921159,1782036639000,-500.0,0.00014689,2]
[425921148,1782036639000,-500.0,0.00014689,2]
[425921453,1782036641000,-2120.24758729,0.00014271,2]
[425921721,1782036643000,-2140.0,0.00014271,2]
[425921726,1782036643000,-2767.05311902,0.00014863,2]
[425921723,1782036643000,-739.75241271,0.00014271,2]
[425922062,1782036646000,-8274.93333856,0.00014863,2]
[425927914,1782037832000,-5000.0,0.00010498,2]
[425927910,1782037832000,-630.17417665,0.00010393,2]
[425927916,1782037832000,-245.14858256,0.00010604,2]
[425927912,1782037832000,-71.5941213,0.00010393,2]
[425927919,1782037832000,-3245.38571393,0.00012179,2]
[425927922,1782037832000,-408.24416984,0.00012179,2]
[425927924,1782037832000,-433.45811007,0.00012179,2]
[425927926,1782037832000,-9015.77555672,0.00012179,2]
[425927918,1782037832000,-300.0,0.00012178,2]
[425928086,1782037838000,-300.0,0.00012421,2]
[425928096,1782037838000,-300.0,0.00012421,2]
[425928090,1782037838000,-300.0,0.00012421,2]
[425928093,1782037838000,-300.0,0.00012421,2]
[425928087,1782037838000,-300.0,0.00012421,2]
[425928088,1782037838000,-300.0,0.00012421,2]
[425928098,1782037838000,-300.0,0.00012421,2]
[425928089,1782037838000,-300.0,0.00012421,2]
[425928095,1782037838000,-300.0,0.00012421,2]
[425928094,1782037838000,-300.0,0.00012421,2]